bitfinex-derivatives/quotes_ETHF0:USTF0_20230106
["timestamp","ask_amount","ask_price","bid_price","bid_amount"]
[1672966958799,2.5,1255.3,1255.2,2.95660483]
[1672966959224,2.5,1255.3,1255.2,1.17906035]
[1672966961537,2.5,1255.3,1255.2,2.95660483]
[1672966961847,3.2078,1255.4,1255.2,2.95660483]
[1672966962686,2.5,1255.3,1255.2,2.95660483]
[1672966964054,14.66771584,1255.5,1255.2,2.95660483]
[1672966964266,3.2078,1255.4,1255.2,2.95660483]
[1672966964577,2.5,1255.3,1255.2,2.95660483]
[1672966965735,3.2078,1255.4,1255.2,2.95660483]
[1672966965943,2.5,1255.3,1255.2,2.95660483]
[1672966967730,3.2078,1255.4,1255.2,1.17906035]
[1672966968043,7.38551584,1255.4,1255.2,2.95660483]
[1672966968468,3.2078,1255.4,1255.2,2.95660483]
[1672966968896,17.87551584,1255.5,1255.2,2.95660483]
[1672966969208,17.87551584,1255.5,1255.2,1.77754448]
[1672966973098,22.64040666,1255.5,1255.2,1.77754448]
[1672966973518,3.2078,1255.4,1255.2,1.77754448]
[1672966973733,2.5,1255.3,1255.2,1.77754448]
[1672966975721,3.2078,1255.4,1255.2,1.77754448]
[1672966975931,2.5,1255.3,1255.2,1.77754448]
[1672966979509,11.1978,1255.4,1255.2,1.77754448]
[1672966979939,2.5,1255.3,1255.2,1.77754448]
[1672966983717,2.4979775,1255.3,1255.2,4.27754448]
[1672966984027,11.1978,1255.4,1255.2,4.27754448]
[1672966984245,14.66771584,1255.5,1255.2,9.85478819]
[1672966984448,14.66771584,1255.5,1255.3,1.77754448]
[1672966984659,14.66771584,1255.5,1255.4,2.5]
[1672966984871,10.49,1255.5,1255.4,2.5]
[1672966985291,13.6978,1255.5,1255.3,2.5]
[1672966985607,17.87551584,1255.5,1255.3,2.5]
[1672966986866,17.87551584,1255.5,1255.2,4.27754448]
[1672966988446,14.66771584,1255.5,1255.2,4.27754448]
[1672966988656,17.87551584,1255.5,1255.2,4.27754448]
[1672966994552,14.66771584,1255.5,1255.2,4.27754448]
[1672966994754,17.87551584,1255.5,1255.2,4.27754448]
[1672966996859,14.66771584,1255.5,1255.2,4.27754448]
[1672966997072,17.87551584,1255.5,1255.2,4.27754448]
[1672966997912,14.66771584,1255.5,1255.2,4.27754448]
[1672966998122,17.87551584,1255.5,1255.2,4.27754448]
[1672966999382,14.66771584,1255.5,1255.2,4.27754448]
[1672966999797,17.87551584,1255.5,1255.2,4.27754448]
[1672967000538,14.66771584,1255.5,1255.2,4.27754448]
[1672967000743,17.87551584,1255.5,1255.2,4.27754448]
[1672967004433,14.66771584,1255.5,1255.2,4.27754448]
[1672967004643,17.87551584,1255.5,1255.2,4.27754448]
[1672967004956,14.66771584,1255.5,1255.2,4.27754448]
[1672967005368,14.66771584,1255.5,1255.2,1.77754448]
[1672967005369,17.87551584,1255.5,1255.2,1.77754448]
[1672967006423,14.66771584,1255.5,1255.2,1.77754448]
[1672967006629,17.87551584,1255.5,1255.2,1.77754448]
[1672967008530,14.66771584,1255.5,1255.2,1.77754448]
[1672967008741,3.2078,1255.4,1255.2,1.77754448]
[1672967008949,2.5,1255.3,1255.2,1.77754448]
[1672967012732,17.87551584,1255.5,1255.2,1.77754448]
[1672967015687,14.66771584,1255.5,1255.2,1.77754448]
[1672967015998,2.5,1255.3,1255.2,1.77754448]
[1672967016841,14.66771584,1255.5,1255.2,7.35478819]
[1672967018840,14.66771584,1255.5,1255.2,4.14698819]
[1672967019151,14.66771584,1255.5,1255.2,7.35478819]
[1672967019679,17.87551584,1255.5,1255.2,7.35478819]
[1672967020205,17.87551584,1255.5,1255.2,4.98534448]
[1672967021991,9.88551584,1255.5,1255.2,4.98534448]
[1672967022193,9.88551584,1255.5,1255.3,2.5]
[1672967023879,9.88551584,1255.5,1255.2,4.98534448]
[1672967025143,6.67771584,1255.5,1255.2,1.77754448]
[1672967025355,9.88551584,1255.5,1255.2,1.77754448]
[1672967026411,6.67771584,1255.5,1255.2,1.77754448]
[1672967026623,9.88551584,1255.5,1255.2,1.77754448]
[1672967027886,6.67771584,1255.5,1255.2,1.77754448]
[1672967028097,9.88551584,1255.5,1255.2,1.77754448]
[1672967030087,14.65040666,1255.5,1255.2,1.77754448]
[1672967030829,14.65040666,1255.5,1255.1,9.85478819]
[1672967031035,5.7078,1255.3,1255.1,7.48534448]
[1672967031247,5.7078,1255.3,1255.1,4.98534448]
[1672967031458,2.5,1255.2,1255.1,1.77754448]
[1672967033145,2.5,1255.2,1255.0,6.64698819]
[1672967033881,2.5,1255.2,1255.1,1.77754448]
[1672967034091,2.5,1255.2,1255.1,4.27754448]
[1672967035043,2.5,1255.2,1255.1,2.5]
[1672967035353,5.7078,1255.3,1255.1,4.27754448]
[1672967038514,5.7078,1255.3,1255.1,1.77754448]
[1672967040615,5.7078,1255.3,1255.0,6.64698819]
[1672967041458,5.7078,1255.3,1255.0,4.27754448]
[1672967043358,5.7078,1255.3,1255.1,2.5]
[1672967044818,2.5,1255.3,1255.1,2.5]
[1672967045029,23.82180666,1255.5,1255.1,4.27754448]
[1672967045242,19.05691584,1255.5,1255.1,7.48534448]
[1672967048211,3.2078,1255.3,1255.1,7.48534448]
[1672967048417,2.5,1255.2,1255.1,4.27754448]
[1672967048627,2.5,1255.2,1255.1,2.5]
[1672967049576,5.7078,1255.3,1255.1,2.5]
[1672967050114,2.5,1255.2,1255.1,2.5]
[1672967050832,2.5,1255.2,1255.0,4.27754448]
[1672967053988,2.5,1255.2,1255.0,1.77754448]
[1672967054189,2.5,1255.2,1255.0,4.27754448]
[1672967057346,2.5,1255.2,1255.0,4.27437908]
[1672967059860,13.6978,1255.3,1255.0,4.27437908]
[1672967061857,2.5,1255.2,1255.0,4.27437908]
[1672967062591,13.6978,1255.3,1255.0,4.27437908]
[1672967063327,13.6978,1255.3,1255.0,6.64382279]
[1672967064910,13.6978,1255.3,1255.0,9.85162279]
[1672967065217,13.6978,1255.3,1255.2,2.5]
[1672967067105,13.6978,1255.3,1255.1,1.18507394]
[1672967067951,10.49,1255.3,1255.1,1.18507394]
[1672967068264,13.6978,1255.3,1255.1,2.96261842]
[1672967068576,13.6978,1255.3,1255.1,1.18507394]
[1672967068789,10.49,1255.3,1255.1,1.18507394]
[1672967069006,13.6978,1255.3,1255.1,2.96261842]
[1672967069319,11.1978,1255.3,1255.1,2.96261842]
[1672967069529,3.2078,1255.3,1255.1,2.96261842]
[1672967069747,5.7078,1255.3,1255.1,2.96261842]
[1672967071946,2.5,1255.3,1255.1,2.96261842]
[1672967072264,5.7078,1255.3,1255.1,2.96261842]
[1672967072579,2.5,1255.2,1255.1,2.96261842]
[1672967073950,2.5,1255.2,1255.1,1.77754448]
[1672967074266,5.7078,1255.3,1255.1,1.77754448]
[1672967074461,5.7078,1255.3,1255.1,2.96296613]
[1672967074676,5.7078,1255.3,1255.2,2.5]
[1672967074998,3.2078,1255.3,1255.2,2.5]
[1672967075311,7.26489082,1255.5,1255.2,3.68542165]
[1672967075312,22.64040666,1255.5,1255.2,3.68542165]
[1672967075519,4.17771584,1255.4,1255.2,3.68542165]
[1672967075729,2.5,1255.3,1255.2,3.68542165]
[1672967077206,2.5,1255.3,1255.2,2.5]
[1672967077412,2.5,1255.3,1255.2,3.68542165]
[1672967078046,2.5,1255.3,1255.2,2.5]
[1672967078259,7.38551584,1255.4,1255.2,3.68542165]
[1672967079197,2.5,1255.3,1255.2,3.68542165]
[1672967079407,2.5,1255.3,1255.2,2.5]
[1672967080781,7.38551584,1255.4,1255.2,2.5]
[1672967081732,7.38551584,1255.4,1255.2,3.68542165]
[1672967082571,4.17771584,1255.4,1255.2,3.68542165]
[1672967082783,7.38551584,1255.4,1255.2,3.68542165]
[1672967083308,7.38551584,1255.4,1255.2,2.5]
[1672967083833,2.5,1255.3,1255.2,2.5]
[1672967084036,7.38551584,1255.4,1255.2,2.5]
[1672967084037,7.38551584,1255.4,1255.2,3.68542165]
[1672967084248,3.2078,1255.4,1255.2,3.68542165]
[1672967084878,17.87551584,1255.5,1255.2,3.68542165]
[1672967085511,22.64040666,1255.5,1255.2,3.68542165]
[1672967085720,4.17771584,1255.4,1255.2,2.5]
[1672967086037,2.5,1255.3,1255.2,2.5]
[1672967086460,2.5,1255.3,1255.2,3.68542165]
[1672967088358,7.38551584,1255.4,1255.2,3.68542165]
[1672967090763,7.38551584,1255.4,1255.2,2.5]
[1672967091181,2.5,1255.3,1255.2,2.38]
[1672967091388,2.49353488,1255.3,1255.2,2.38]
[1672967092761,2.49353488,1255.3,1255.2,3.56542165]
[1672967092972,7.38551584,1255.4,1255.2,3.56542165]
[1672967093924,4.17771584,1255.4,1255.2,3.56542165]
[1672967094235,7.38551584,1255.4,1255.2,3.56542165]
[1672967094970,4.17771584,1255.4,1255.2,3.56542165]
[1672967095181,7.38551584,1255.4,1255.2,3.56542165]
[1672967095603,4.17771584,1255.4,1255.2,3.56542165]
[1672967095914,2.5,1255.3,1255.2,1.18542165]
[1672967096124,2.5,1255.3,1255.1,2.96296613]
[1672967097598,2.5,1255.3,1255.2,2.5]
[1672967097807,7.38551584,1255.4,1255.2,3.68542165]
[1672967098961,2.5,1255.3,1255.2,3.68542165]
[1672967102326,2.5,1255.3,1255.2,1.18542165]
[1672967103161,2.5,1255.3,1255.1,2.96296613]
[1672967103798,2.5,1255.3,1255.2,1.18542165]
[1672967105167,2.5,1255.3,1255.1,2.96296613]
[1672967106952,5.7078,1255.3,1255.1,2.96296613]
[1672967107474,5.7078,1255.3,1255.2,1.18542165]
[1672967107687,5.7078,1255.3,1255.1,2.96296613]
[1672967107896,5.7078,1255.3,1255.2,2.5]
[1672967108424,5.7078,1255.3,1255.2,3.68542165]
[1672967108839,5.7078,1255.3,1255.2,1.18542165]
[1672967109792,5.7078,1255.3,1255.1,2.96296613]
[1672967116834,5.7078,1255.3,1255.1,1.18542165]
[1672967117041,9.88551584,1255.3,1255.0,2.96296613]
[1672967117668,17.87551584,1255.3,1255.0,2.96296613]
[1672967117881,17.87551584,1255.3,1255.0,1.18542165]
[1672967119455,3.2078,1255.1,1255.0,1.18542165]
[1672967120721,3.2078,1255.1,1254.9,5.46296613]
[1672967121975,2.5,1255.0,1254.9,2.96296613]
[1672967122193,2.5,1255.0,1254.9,5.46296613]
[1672967122937,3.2078,1255.1,1254.9,5.46296613]
[1672967123347,3.2078,1255.1,1255.0,1.18542165]
[1672967123562,3.2078,1255.1,1255.0,3.68542165]
[1672967124079,3.2078,1255.1,1255.0,2.5]
[1672967124615,14.66771584,1255.3,1255.0,2.5]
[1672967124927,2.5,1255.1,1255.0,2.5]
[1672967125988,2.5,1255.1,1254.9,5.46296613]
[1672967132798,11.1978,1255.2,1254.9,5.46296613]
[1672967133233,2.5,1255.1,1254.9,5.46296613]
[1672967139220,2.5,1255.1,1254.9,2.96296613]
[1672967139535,2.5,1255.1,1254.9,1.18542165]
[1672967139748,2.5,1255.1,1254.9,3.68542165]
[1672967140481,2.5,1255.1,1254.9,5.46296613]
[1672967142159,5.7078,1255.1,1254.9,5.46296613]
[1672967142794,5.7078,1255.1,1254.9,2.96296613]
[1672967143107,5.7078,1255.1,1254.9,1.18542165]
[1672967143948,2.5,1255.1,1254.9,1.18542165]
[1672967144159,5.7078,1255.1,1254.9,1.18542165]
[1672967145002,5.7078,1255.1,1254.9,3.68542165]
[1672967146890,5.7078,1255.1,1254.9,5.46296613]
[1672967147096,2.5,1255.1,1254.9,5.46296613]
[1672967147308,5.7078,1255.1,1254.9,5.46296613]
[1672967148466,5.7078,1255.1,1254.9,2.96296613]
[1672967150251,2.5,1255.1,1254.9,2.96296613]
[1672967150457,5.7078,1255.1,1254.9,2.96296613]
[1672967151613,2.5,1255.1,1254.9,2.96296613]
[1672967151830,5.7078,1255.1,1254.9,2.96296613]
[1672967152031,2.5,1255.1,1254.9,2.96296613]
[1672967152558,5.7078,1255.1,1254.9,2.96296613]
[1672967152986,5.7078,1255.1,1255.0,1.18542165]
[1672967153191,5.7078,1255.1,1255.0,3.68542165]
[1672967153717,5.7078,1255.1,1255.0,2.5]
[1672967154141,5.7078,1255.1,1254.9,5.46296613]
[1672967155086,2.5,1255.1,1254.9,5.46296613]
[1672967155287,2.5,1255.1,1255.0,3.68542165]
[1672967155916,5.7078,1255.1,1255.0,3.68542165]
[1672967156559,2.5,1255.1,1255.0,3.68542165]
[1672967156876,5.7078,1255.1,1255.0,3.68542165]
[1672967157396,3.2078,1255.1,1255.0,3.68542165]
[1672967157597,2.5,1255.1,1255.0,1.18542165]
[1672967157805,5.7078,1255.1,1255.0,1.18542165]
[1672967158019,2.5,1255.1,1255.0,1.18542165]
[1672967158233,5.7078,1255.1,1255.0,1.18542165]
[1672967159183,2.5,1255.1,1255.0,1.18542165]
[1672967159607,3.2078,1255.1,1255.0,1.18542165]
[1672967159921,5.7078,1255.1,1255.0,1.18542165]
[1672967160119,2.5,1255.1,1255.0,1.18542165]
[1672967160333,3.2078,1255.2,1255.0,2.96296613]
[1672967160538,11.1978,1255.2,1255.0,5.46296613]
[1672967162442,7.99,1255.2,1255.0,5.46296613]
[1672967163706,14.65040666,1255.3,1255.0,5.46296613]
[1672967163916,4.17771584,1255.2,1255.0,5.46296613]
[1672967164129,2.5,1255.1,1255.0,5.46296613]
[1672967164859,17.87551584,1255.3,1255.0,5.46296613]
[1672967166648,22.64040666,1255.3,1255.0,5.46296613]
[1672967167068,19.43260666,1255.3,1255.0,5.46296613]
[1672967167282,22.64040666,1255.3,1255.0,5.46296613]
[1672967167807,22.64040666,1255.3,1255.0,5.45697945]
[1672967168021,22.64040666,1255.3,1255.1,2.5]
[1672967170231,19.43260666,1255.3,1255.1,2.5]
[1672967170430,3.2078,1255.2,1255.1,2.5]
[1672967172216,7.38551584,1255.2,1255.0,3.67943497]
[1672967172433,2.5,1255.1,1255.0,3.67943497]
[1672967173167,7.38551584,1255.2,1255.0,3.67943497]
[1672967174114,4.17771584,1255.2,1255.0,3.67943497]
[1672967174637,7.38551584,1255.2,1255.0,3.67943497]
[1672967174848,4.17771584,1255.2,1255.0,3.67943497]
[1672967175166,7.38551584,1255.2,1255.0,3.67943497]
[1672967175572,4.17771584,1255.2,1255.0,3.67943497]
[1672967175999,7.38551584,1255.2,1255.0,3.67943497]
[1672967176847,4.17771584,1255.2,1255.0,3.67943497]
[1672967177580,7.38551584,1255.2,1255.0,3.67943497]
[1672967178941,7.38551584,1255.2,1255.0,1.17943497]
[1672967179152,2.5,1255.1,1255.0,1.17943497]
[1672967181998,4.17771584,1255.2,1255.0,1.17943497]
[1672967182421,7.38551584,1255.2,1255.0,1.17943497]
[1672967183152,4.17771584,1255.2,1255.0,1.17943497]
[1672967183360,2.5,1255.1,1255.0,1.17943497]
[1672967186728,12.16771584,1255.2,1255.0,1.17943497]
[1672967186939,15.37551584,1255.2,1255.0,1.17943497]
[1672967187148,12.16771584,1255.2,1255.0,1.17943497]
[1672967187360,15.37551584,1255.2,1255.0,1.17943497]
[1672967188096,12.16771584,1255.2,1255.0,1.17943497]
[1672967188409,15.37551584,1255.2,1255.0,1.17943497]
[1672967188822,12.16771584,1255.2,1255.0,1.17943497]
[1672967189464,15.37551584,1255.2,1255.0,1.17943497]
[1672967189671,12.16771584,1255.2,1255.0,1.17943497]
[1672967189985,15.37551584,1255.2,1255.0,1.17943497]
[1672967190726,12.16771584,1255.2,1255.0,1.17943497]
[1672967191038,15.37551584,1255.2,1255.0,1.17943497]
[1672967191247,15.37551584,1255.2,1254.9,4.27754448]
[1672967191984,2.5,1255.1,1254.9,4.27754448]
[1672967193457,15.37551584,1255.2,1255.0,2.5]
[1672967196291,5.7078,1255.1,1255.0,2.5]
[1672967198080,2.5,1255.1,1255.0,2.5]
[1672967198289,5.7078,1255.1,1255.0,2.5]
[1672967198605,5.7078,1255.1,1254.9,4.27754448]
[1672967198915,2.5,1255.1,1254.9,4.27754448]
[1672967199129,5.7078,1255.1,1254.9,4.27754448]
[1672967200073,2.5,1255.1,1254.9,4.27754448]
[1672967200285,5.7078,1255.1,1254.9,4.27754448]
[1672967201124,3.2078,1255.1,1254.9,4.27754448]
[1672967201330,2.5,1255.0,1254.9,4.27754448]
[1672967201758,5.7078,1255.1,1254.9,4.27754448]
[1672967204698,2.5,1255.1,1254.9,4.27754448]
[1672967204909,5.7078,1255.1,1254.9,4.27754448]
[1672967206059,3.2078,1255.1,1254.9,4.27754448]
[1672967206474,16.93260666,1255.2,1255.0,4.27754448]
[1672967206694,12.16771584,1255.2,1255.0,2.5]
[1672967206906,17.87551584,1255.3,1255.0,4.27754448]
[1672967207219,17.87551584,1255.3,1255.0,2.5]
[1672967207430,2.5,1255.1,1255.0,2.5]
[1672967207845,4.17771584,1255.2,1255.0,2.5]
[1672967208268,2.5,1255.1,1255.0,2.5]
[1672967208900,4.17771584,1255.2,1255.0,2.5]
[1672967211103,4.17771584,1255.2,1255.0,4.27754448]
[1672967211422,4.17771584,1255.2,1255.0,2.5]
[1672967212159,7.38551584,1255.2,1255.0,2.5]
[1672967212788,4.17771584,1255.2,1255.0,2.5]
[1672967213000,7.38551584,1255.2,1255.0,2.5]
[1672967213631,7.38551584,1255.2,1254.9,6.64698819]
[1672967213950,2.5,1255.1,1254.9,4.27754448]
[1672967215412,7.38551584,1255.2,1254.9,4.27754448]
[1672967216259,7.38551584,1255.2,1254.9,6.64698819]
[1672967216469,7.38551584,1255.2,1254.9,4.27754448]
[1672967217304,4.17771584,1255.2,1254.9,4.27754448]
[1672967217518,7.38551584,1255.2,1254.9,4.27754448]
[1672967218882,4.17771584,1255.2,1254.9,4.27754448]
[1672967219092,7.38551584,1255.2,1254.9,4.27754448]
[1672967219508,4.17771584,1255.2,1254.9,4.27754448]
[1672967219719,7.38551584,1255.2,1254.9,4.27754448]
[1672967220668,15.37551584,1255.4,1255.2,2.5]
[1672967220872,7.38551584,1255.4,1255.2,2.5]
[1672967221079,9.88551584,1255.4,1255.2,2.5]
[1672967222037,3.2078,1255.4,1255.2,2.5]
[1672967222557,5.7078,1255.4,1255.2,2.5]
[1672967223185,2.5,1255.4,1255.2,2.5]
[1672967223401,12.16771584,1255.5,1255.2,2.5]
[1672967223612,2.5,1255.4,1255.2,2.5]
[1672967231811,2.5,1255.4,1255.1,2.5]
[1672967232120,2.5,1255.2,1255.1,2.5]
[1672967232965,3.2078,1255.3,1255.1,2.5]
[1672967235067,2.5,1255.4,1255.1,2.5]
[1672967235376,5.7078,1255.4,1255.1,2.5]
[1672967235582,2.5,1255.4,1255.1,2.5]
[1672967235796,5.7078,1255.4,1255.1,2.5]
[1672967236636,2.5,1255.4,1255.1,2.5]
[1672967236955,5.7078,1255.4,1255.1,2.5]
[1672967239364,3.2078,1255.2,1254.9,4.27754448]
[1672967239786,2.5,1255.1,1254.9,4.27754448]
[1672967242524,3.2078,1255.2,1254.9,4.27754448]
[1672967244311,2.5,1255.1,1254.9,4.27754448]
[1672967246304,5.7078,1255.2,1254.9,4.27754448]
[1672967247146,2.5,1255.2,1254.9,4.27754448]
[1672967254614,5.7078,1255.2,1254.9,4.27754448]
[1672967256200,5.7078,1255.2,1254.9,1.77754448]
[1672967256403,0.00580565,1254.9,1254.8,7.48534448]
[1672967260824,0.00580565,1254.9,1254.8,8.07724371]
[1672967261348,0.00580565,1254.9,1254.8,7.48750769]
[1672967261554,13.6978,1255.2,1255.0,2.5]
[1672967264398,3.2078,1255.1,1255.0,2.5]
[1672967264607,3.2078,1255.1,1254.9,2.50189899]
[1672967264813,2.5,1255.0,1254.9,2.50189899]
[1672967265871,3.2078,1255.1,1254.9,2.50189899]
[1672967266714,10.49,1255.2,1254.9,2.50189899]
[1672967267026,13.6978,1255.2,1254.9,2.50189899]
[1672967269130,10.49,1255.2,1254.9,2.50189899]
[1672967269334,13.6978,1255.2,1254.9,2.50189899]
[1672967271749,10.49,1255.2,1254.9,2.50189899]
[1672967271958,13.6978,1255.2,1254.9,2.50189899]
[1672967273225,13.6978,1255.2,1254.9,4.28160668]
[1672967273436,17.87551584,1255.2,1254.9,4.28160668]
[1672967273648,14.66771584,1255.2,1254.9,4.28160668]
[1672967273959,13.6978,1255.2,1254.9,4.28160668]
[1672967274590,10.49,1255.2,1254.9,4.28160668]
[1672967274798,13.6978,1255.2,1254.9,4.28160668]
[1672967275218,14.66771584,1255.2,1254.9,4.28160668]
[1672967275432,17.87551584,1255.2,1254.9,4.28160668]
[1672967276705,14.66771584,1255.2,1254.9,4.28160668]
[1672967276912,17.87551584,1255.2,1254.9,4.28160668]
[1672967279443,14.66771584,1255.2,1254.9,4.28160668]
[1672967279643,17.87551584,1255.2,1254.9,4.28160668]
[1672967279965,14.66771584,1255.2,1254.9,4.28160668]
[1672967280164,17.87551584,1255.2,1254.9,4.28160668]
[1672967281121,14.66771584,1255.2,1254.9,4.28160668]
[1672967281643,17.87551584,1255.2,1254.9,4.28160668]
[1672967284486,14.66771584,1255.2,1254.9,4.28160668]
[1672967284697,3.2078,1255.1,1254.9,4.28160668]
[1672967284907,2.5,1255.0,1254.9,4.28160668]
[1672967285223,2.5,1255.0,1254.9,1.78160668]
[1672967286174,3.2078,1255.1,1254.9,1.78160668]
[1672967286384,2.5,1255.0,1254.9,1.78160668]
[1672967287856,3.2078,1255.1,1254.9,2.96989656]
[1672967288071,3.2078,1255.1,1255.0,1.18828988]
[1672967288382,3.2078,1255.1,1255.0,3.68828988]
[1672967289953,17.87551584,1255.2,1255.0,3.68828988]
[1672967291113,17.87551584,1255.2,1255.0,1.18828988]
[1672967294476,7.99,1255.2,1255.1,1.18828988]
[1672967294686,7.99,1255.2,1255.1,5.46799757]
[1672967295109,7.99,1255.2,1255.1,3.68828988]
[1672967296374,11.1978,1255.2,1255.1,2.5]
[1672967296579,11.1978,1255.2,1255.0,1.18828988]
[1672967296892,15.37551584,1255.2,1255.0,1.18828988]
[1672967297732,11.1978,1255.2,1255.0,2.96799757]
[1672967298264,11.1978,1255.2,1255.0,1.18828988]
[1672967298896,11.1978,1255.2,1255.0,2.96799757]
[1672967299208,11.1978,1255.2,1255.0,1.18828988]
[1672967300365,15.37551584,1255.2,1255.0,1.18828988]
[1672967300785,11.1978,1255.2,1255.0,1.18828988]
[1672967300997,11.1978,1255.2,1255.0,2.96799757]
[1672967301314,7.99,1255.2,1255.0,2.96799757]
[1672967301840,11.1978,1255.2,1255.0,2.96799757]
[1672967303517,11.1978,1255.2,1255.0,1.18828988]
[1672967303728,15.37551584,1255.2,1255.0,1.18828988]
[1672967305201,2.5,1255.1,1255.0,1.18828988]
[1672967315811,2.5,1255.1,1254.9,2.96989656]
[1672967316437,2.5,1255.1,1255.0,1.18828988]
[1672967316650,2.5,1255.1,1255.0,3.68828988]
[1672967321896,2.5,1255.1,1255.0,1.18828988]
[1672967328106,2.5,1255.1,1254.9,5.46989656]
[1672967329370,5.7078,1255.1,1254.9,5.46989656]
[1672967329898,5.7078,1255.1,1254.9,2.96989656]
[1672967330419,17.87551584,1255.1,1254.9,0.00189899]
[1672967331045,17.87551584,1255.1,1254.9,1.19018887]
[1672967331877,17.87551584,1255.1,1254.9,0.00189899]
[1672967332412,17.87551584,1255.1,1254.9,1.19018887]
[1672967333042,17.87551584,1255.1,1254.9,0.00189899]
[1672967333254,17.87551584,1255.1,1254.9,1.19018887]
[1672967334413,14.66771584,1255.1,1254.9,1.19018887]
[1672967334613,17.87551584,1255.1,1254.9,1.19018887]
[1672967335672,13.6978,1255.1,1254.9,1.19018887]
[1672967336833,17.87551584,1255.1,1254.9,0.00189899]
[1672967337148,17.87551584,1255.1,1254.9,1.19018887]
[1672967337362,13.6978,1255.1,1254.9,1.19018887]
[1672967338306,17.87551584,1255.1,1254.9,1.19018887]
[1672967338733,14.66771584,1255.1,1254.9,0.00189899]
[1672967339040,11.1978,1255.0,1254.9,1.19018887]
[1672967339674,11.1978,1255.0,1254.9,0.00189899]
[1672967339875,11.1978,1255.0,1254.9,1.19018887]
[1672967340087,11.1978,1255.0,1254.9,0.00189899]
[1672967341775,2.50069493,1254.9,1254.8,5.46799757]
[1672967343036,0.00069493,1254.9,1254.8,5.46799757]
[1672967343238,0.00069493,1254.9,1254.8,4.27970769]
[1672967343450,0.00069493,1254.9,1254.8,5.46753403]
[1672967344396,0.00069493,1254.9,1254.8,5.46746724]
[1672967344719,0.00069493,1254.9,1254.8,6.28198134]
[1672967345129,0.00069493,1254.9,1254.8,6.28198755]
[1672967345452,0.00069493,1254.9,1254.8,4.28149984]
[1672967349863,0.00069493,1254.9,1254.8,6.65094355]
[1672967351970,0.00069493,1254.9,1254.8,4.28149984]
[1672967352386,0.00069493,1254.9,1254.8,6.65094355]
[1672967354385,0.00069493,1254.9,1254.8,4.86944371]
[1672967354696,0.00069493,1254.9,1254.8,6.65103758]
[1672967355427,0.00069493,1254.9,1254.8,6.65100706]
[1672967355642,0.00069493,1254.9,1254.8,9.85889684]
[1672967357115,0.00069493,1254.9,1254.8,6.65109684]
[1672967357324,0.00069493,1254.9,1254.8,4.28165313]
[1672967357528,0.00069493,1254.9,1254.8,6.65109684]
[1672967357739,0.00069493,1254.9,1254.8,4.86944371]
[1672967357948,0.00069493,1254.9,1254.8,6.651175]
[1672967361846,0.00069493,1254.9,1254.8,4.28173129]
[1672967363317,0.00069493,1254.9,1254.8,6.651175]
[1672967368362,0.00069493,1254.9,1254.8,4.86944371]
[1672967369834,0.00069493,1254.9,1254.8,6.65193526]
[1672967371728,0.00069493,1254.9,1254.8,6.65213425]
[1672967371938,0.00069493,1254.9,1254.8,4.86944371]
[1672967372360,0.00069493,1254.9,1254.8,6.65214609]
[1672967372871,0.00069493,1254.9,1254.8,4.28270238]
[1672967373304,0.00069493,1254.9,1254.8,6.65214609]
[1672967373827,0.00069493,1254.9,1254.8,4.28270238]
[1672967374357,0.00069493,1254.9,1254.8,6.65214609]
[1672967375715,0.00069493,1254.9,1254.8,4.28270238]
[1672967376142,0.00069493,1254.9,1254.8,6.65214609]
[1672967376986,0.00069493,1254.9,1254.8,4.28270238]
[1672967378031,0.00069493,1254.9,1254.8,6.65214609]
[1672967378235,0.00069493,1254.9,1254.8,4.28270238]
[1672967401376,0.00069493,1254.9,1254.8,5.47102487]
[1672967401583,0.00069493,1254.9,1254.8,4.28270238]
[1672967402424,0.00069493,1254.9,1254.8,5.47113251]
[1672967403588,0.00069493,1254.9,1254.8,5.47117322]
[1672967404954,0.00069493,1254.9,1254.8,4.28270238]
[1672967405682,0.00069493,1254.9,1254.8,1.78270238]
[1672967405891,0.00069493,1254.9,1254.7,1.18853546]
[1672967406097,0.00069493,1254.9,1254.8,1.18853546]
[1672967406422,0.00069493,1254.9,1254.8,2.5]
[1672967407369,0.00069493,1254.9,1254.8,3.68853546]
[1672967415466,0.00069493,1254.9,1254.8,2.5]
[1672967420300,0.00069493,1254.9,1254.8,2.49210798]
[1672967422401,15.37551584,1255.0,1254.9,0.00410315]
[1672967422601,11.1978,1255.0,1254.9,0.00410315]
[1672967422927,12.16771584,1255.0,1254.9,0.00410315]
[1672967423140,15.37551584,1255.0,1254.9,0.00410315]
[1672967425347,11.1978,1255.0,1254.9,0.00410315]
[1672967429455,15.37551584,1255.0,1254.9,0.00410315]
[1672967434390,12.16771584,1255.0,1254.9,0.00410315]
[1672967434808,15.37551584,1255.0,1254.9,0.00410315]
[1672967436597,12.16771584,1255.0,1254.9,0.00410315]
[1672967436812,15.37551584,1255.0,1254.9,0.00410315]
[1672967445656,12.16771584,1255.0,1254.9,0.00410315]
[1672967445968,15.37551584,1255.0,1254.9,0.00410315]
[1672967446394,16.93260666,1255.0,1254.9,0.00410315]
[1672967446813,20.14040666,1255.0,1254.9,0.00410315]
[1672967447146,15.37551584,1255.0,1254.9,0.00410315]
[1672967447976,12.16771584,1255.0,1254.9,0.00410315]
[1672967448191,15.37551584,1255.0,1254.9,0.00410315]
[1672967448399,20.14040666,1255.0,1254.9,0.00410315]
[1672967448617,15.37551584,1255.0,1254.9,0.00410315]
[1672967450295,12.16771584,1255.0,1254.9,0.00410315]
[1672967450607,15.37551584,1255.0,1254.9,0.00410315]
[1672967451652,12.16771584,1255.0,1254.9,0.00410315]
[1672967452069,15.37551584,1255.0,1254.9,0.00410315]
[1672967457536,12.16771584,1255.0,1254.9,0.00410315]
[1672967457757,15.37551584,1255.0,1254.9,0.00410315]
[1672967461729,12.16771584,1255.0,1254.9,0.00410315]
[1672967461941,15.37551584,1255.0,1254.9,0.00410315]
[1672967469307,12.16771584,1255.0,1254.9,0.00410315]
[1672967469616,15.37551584,1255.0,1254.9,0.00410315]
[1672967472776,12.16771584,1255.0,1254.9,0.00410315]
[1672967472986,15.37551584,1255.0,1254.9,0.00410315]
[1672967476453,12.16771584,1255.0,1254.9,0.00410315]
[1672967476661,15.37551584,1255.0,1254.9,0.00410315]
[1672967480239,12.16771584,1255.0,1254.9,0.00410315]